[Event "Early-Titled-Tuesday-Blitz-July-09-2024"]
[Site "Chess.com"]
[Date "2024.07.09"]
[Round "6"]
[White "praveenb2002"]
[Black "HaryKane"]
[Result "1-0"]
[WhiteElo "2836"]
[BlackElo "2608"]
[TimeControl "180+1"]
[EndTime "9:09:03 PDT"]
[Termination "praveenb2002 won by resignation"]

1. e4 {[%clk 0:03:00.9]} 1... e5 {[%clk 0:02:59.5]} 2. Nf3 {[%clk 0:02:56.4]}
2... Nc6 {[%clk 0:02:59.4]} 3. Bc4 {[%clk 0:02:55.8]} 3... Nf6 {[%clk
0:02:57.3]} 4. d3 {[%clk 0:02:44.5]} 4... Bc5 {[%clk 0:02:54.2]} 5. c3 {[%clk
0:02:40.1]} 5... d6 {[%clk 0:02:51.5]} 6. O-O {[%clk 0:02:39.7]} 6... h6 {[%clk
0:02:50.7]} 7. b4 {[%clk 0:02:29.5]} 7... Bb6 {[%clk 0:02:50.3]} 8. a4 {[%clk
0:02:30]} 8... a6 {[%clk 0:02:50.5]} 9. Nbd2 {[%clk 0:02:28.4]} 9... O-O {[%clk
0:02:47.3]} 10. Bb3 {[%clk 0:02:23.8]} 10... d5 {[%clk 0:02:44.8]} 11. exd5
{[%clk 0:02:17.6]} 11... Nxd5 {[%clk 0:02:45.7]} 12. Ne4 {[%clk 0:02:18.1]}
12... Be6 {[%clk 0:02:38.3]} 13. Bd2 {[%clk 0:02:14.9]} 13... f5 {[%clk
0:02:36.8]} 14. Ng3 {[%clk 0:02:10.1]} 14... Qf6 {[%clk 0:02:27.6]} 15. Re1
{[%clk 0:02:04.3]} 15... Bf7 {[%clk 0:02:07.7]} 16. b5 {[%clk 0:02:01.3]} 16...
axb5 {[%clk 0:02:04.6]} 17. axb5 {[%clk 0:02:02.2]} 17... Rxa1 {[%clk
0:02:00.7]} 18. Qxa1 {[%clk 0:02:01.7]} 18... Nf4 {[%clk 0:02:01.3]} 19. Bxf7+
{[%clk 0:01:56.6]} 19... Qxf7 {[%clk 0:01:59.3]} 20. bxc6 {[%clk 0:01:39.6]}
20... Nxd3 {[%clk 0:01:55.2]} 21. Nxe5 {[%clk 0:01:29.1]} 21... Bxf2+ {[%clk
0:01:46.3]} 22. Kf1 {[%clk 0:01:27.7]} 22... Qd5 {[%clk 0:01:24.6]} 23. c4
{[%clk 0:01:23.2]} 23... Qd6 {[%clk 0:01:14.5]} 24. Nxd3 {[%clk 0:00:59.7]}
24... Bxe1 {[%clk 0:01:14.6]} 25. Nxe1 {[%clk 0:00:46]} 25... Qxd2 {[%clk
0:01:11.7]} 26. cxb7 {[%clk 0:00:46.3]} 26... Qb4 {[%clk 0:01:02.5]} 27. Qa7
{[%clk 0:00:39.3]} 27... Qxc4+ {[%clk 0:01:01]} 28. Kg1 {[%clk 0:00:37]} 28...
Qb4 {[%clk 0:00:59.1]} 29. Nf3 {[%clk 0:00:35.1]} 29... f4 {[%clk 0:00:51.7]}
30. Ne2 {[%clk 0:00:31.7]} 30... Re8 {[%clk 0:00:39.5]} 31. h3 {[%clk
0:00:27.3]} 31... Kh7 {[%clk 0:00:35.6]} 32. Ned4 {[%clk 0:00:21.9]} 32... c5
{[%clk 0:00:20.6]} 33. Nc6 {[%clk 0:00:19.6]} 33... Qb1+ {[%clk 0:00:20.8]} 34.
Kh2 {[%clk 0:00:15.8]} 34... Qg6 {[%clk 0:00:21.2]} 35. Qa1 {[%clk 0:00:11.4]}
35... Qxc6 {[%clk 0:00:13]} 36. Qb1+ {[%clk 0:00:11.2]} 36... Qg6 {[%clk
0:00:07.1]} 37. b8=Q {[%clk 0:00:10.2]} 37... Rxb8 {[%clk 0:00:06.1]} 38. Qxb8
{[%clk 0:00:09.7]} 38... Qg3+ {[%clk 0:00:04.9]} 39. Kh1 {[%clk 0:00:09.7]}
39... Qf2 {[%clk 0:00:05]} 40. Qxf4 {[%clk 0:00:08.7]} 40... Qf1+ {[%clk
0:00:03.9]} 41. Kh2 {[%clk 0:00:08.9]} 41... c4 {[%clk 0:00:04.8]} 42. Ng5+
{[%clk 0:00:09]} 1-0

[Event "Early-Titled-Tuesday-Blitz-July-09-2024"]
[Site "Chess.com"]
[Date "2024.07.09"]
[Round "6"]
[White "Hudijegszid"]
[Black "EternalNight8"]
[Result "0-1"]
[WhiteElo "2501"]
[BlackElo "2388"]
[TimeControl "180+1"]
[EndTime "9:09:05 PDT"]
[Termination "EternalNight8 won by resignation"]

1. Nf3 {[%clk 0:03:00.9]} 1... Nf6 {[%clk 0:02:59.3]} 2. b4 {[%clk 0:02:59.4]}
2... g6 {[%clk 0:02:57.9]} 3. Bb2 {[%clk 0:02:59]} 3... Bg7 {[%clk 0:02:58.3]}
4. g3 {[%clk 0:02:59.5]} 4... O-O {[%clk 0:02:58.3]} 5. Bg2 {[%clk 0:02:59.9]}
5... d5 {[%clk 0:02:57.8]} 6. O-O {[%clk 0:03:00.1]} 6... a5 {[%clk 0:02:56.5]}
7. b5 {[%clk 0:02:59.8]} 7... c5 {[%clk 0:02:55.2]} 8. d3 {[%clk 0:02:58.7]}
8... b6 {[%clk 0:02:54.4]} 9. c4 {[%clk 0:02:58.6]} 9... Bb7 {[%clk 0:02:53.4]}
10. a4 {[%clk 0:02:58.7]} 10... Nbd7 {[%clk 0:02:51.9]} 11. Nbd2 {[%clk
0:02:58.3]} 11... d4 {[%clk 0:02:50.3]} 12. Qc2 {[%clk 0:02:55.3]} 12... e5
{[%clk 0:02:49.8]} 13. Rae1 {[%clk 0:02:53.5]} 13... Nh5 {[%clk 0:02:39.9]} 14.
e3 {[%clk 0:02:53.3]} 14... f5 {[%clk 0:02:37.7]} 15. exd4 {[%clk 0:02:53.6]}
15... cxd4 {[%clk 0:02:34.1]} 16. Ba3 {[%clk 0:02:53.8]} 16... Re8 {[%clk
0:02:30.1]} 17. Nb3 {[%clk 0:02:46.5]} 17... Rc8 {[%clk 0:02:24.7]} 18. Nfd2
{[%clk 0:02:20.5]} 18... Bxg2 {[%clk 0:02:17.6]} 19. Kxg2 {[%clk 0:02:21.4]}
19... Qc7 {[%clk 0:02:01.6]} 20. f3 {[%clk 0:02:19.4]} 20... Bh6 {[%clk
0:01:48.9]} 21. c5 {[%clk 0:02:04.2]} 21... Nxc5 {[%clk 0:01:39.9]} 22. Bxc5
{[%clk 0:02:01.1]} 22... bxc5 {[%clk 0:01:40.1]} 23. Nc4 {[%clk 0:02:00.6]}
23... Nf6 {[%clk 0:01:17.7]} 24. Nbxa5 {[%clk 0:01:57.6]} 24... Nd5 {[%clk
0:01:15.3]} 25. Nc6 {[%clk 0:01:57.4]} 25... Be3 {[%clk 0:01:04.1]} 26. a5
{[%clk 0:01:52.7]} 26... h5 {[%clk 0:00:36.2]} 27. a6 {[%clk 0:01:49.1]} 27...
h4 {[%clk 0:00:34.5]} 28. a7 {[%clk 0:01:19]} 28... Nb4 {[%clk 0:00:20.4]} 29.
Nxb4 {[%clk 0:01:15.3]} 29... cxb4 {[%clk 0:00:21.3]} 30. b6 {[%clk 0:01:06.9]}
30... Qxb6 {[%clk 0:00:18.9]} 31. Nxb6 {[%clk 0:00:59.4]} 31... Rxc2+ {[%clk
0:00:18.7]} 32. Kh1 {[%clk 0:00:59.4]} 32... hxg3 {[%clk 0:00:18.3]} 33. hxg3
{[%clk 0:00:58.5]} 33... Ra2 {[%clk 0:00:16.7]} 34. Ra1 {[%clk 0:00:58.6]} 34...
Rd2 {[%clk 0:00:12.6]} 35. a8=Q {[%clk 0:00:57.4]} 35... Rxa8 {[%clk 0:00:11.7]}
36. Rxa8+ {[%clk 0:00:57.1]} 36... Kf7 {[%clk 0:00:12]} 37. Nd5 {[%clk
0:00:57.5]} 37... b3 {[%clk 0:00:11.6]} 38. Nxe3 {[%clk 0:00:51.8]} 38... dxe3
{[%clk 0:00:11.4]} 39. Rb8 {[%clk 0:00:51.8]} 39... e2 {[%clk 0:00:10.1]} 40.
Re1 {[%clk 0:00:43.2]} 40... Rd1 {[%clk 0:00:10.3]} 41. Kg2 {[%clk 0:00:43.9]}
41... Rxe1 {[%clk 0:00:10.5]} 42. Kf2 {[%clk 0:00:44.6]} 42... Rb1 {[%clk
0:00:07.8]} 43. Kxe2 {[%clk 0:00:44.7]} 43... b2 {[%clk 0:00:08]} 44. Kd2 {[%clk
0:00:44.6]} 44... Rf1 {[%clk 0:00:05.7]} 45. Rxb2 {[%clk 0:00:43.7]} 45... Rf2+
{[%clk 0:00:05.7]} 46. Kc3 {[%clk 0:00:43.2]} 46... Rxf3 {[%clk 0:00:06.1]} 47.
g4 {[%clk 0:00:43.5]} 47... fxg4 {[%clk 0:00:06.1]} 48. Rg2 {[%clk 0:00:44.2]}
48... g3 {[%clk 0:00:06.6]} 49. Kd2 {[%clk 0:00:44.8]} 49... Rf2+ {[%clk
0:00:05.9]} 50. Rxf2+ {[%clk 0:00:44.6]} 50... gxf2 {[%clk 0:00:06.8]} 51. Ke2
{[%clk 0:00:45.4]} 51... Ke6 {[%clk 0:00:06.7]} 52. Kxf2 {[%clk 0:00:45.6]}
52... Kd5 {[%clk 0:00:07.2]} 53. Ke3 {[%clk 0:00:45.6]} 53... g5 {[%clk
0:00:07.5]} 54. Ke2 {[%clk 0:00:40.9]} 54... Kd4 {[%clk 0:00:07.7]} 55. Kd2
{[%clk 0:00:41.4]} 55... g4 {[%clk 0:00:07.4]} 56. Ke2 {[%clk 0:00:41.7]} 56...
g3 {[%clk 0:00:07.9]} 57. Kf3 {[%clk 0:00:42.2]} 57... Kxd3 {[%clk 0:00:08.3]}
58. Kxg3 {[%clk 0:00:42.9]} 58... e4 {[%clk 0:00:08.5]} 59. Kf2 {[%clk
0:00:43.4]} 59... Kd2 {[%clk 0:00:08.7]} 0-1

[Event "Early-Titled-Tuesday-Blitz-July-09-2024"]
[Site "Chess.com"]
[Date "2024.07.09"]
[Round "6"]
[White "noblerone"]
[Black "AndresDelgado77"]
[Result "0-1"]
[WhiteElo "2497"]
[BlackElo "2342"]
[TimeControl "180+1"]
[EndTime "9:09:05 PDT"]
[Termination "AndresDelgado77 won on time"]

1. d4 {[%clk 0:02:51.3]} 1... Nf6 {[%clk 0:02:19.5]} 2. Nf3 {[%clk 0:02:50.9]}
2... c5 {[%clk 0:02:18]} 3. c3 {[%clk 0:02:46.5]} 3... b6 {[%clk 0:02:16.3]} 4.
Bg5 {[%clk 0:02:45.8]} 4... Ne4 {[%clk 0:02:13.4]} 5. Bf4 {[%clk 0:02:45.7]}
5... Bb7 {[%clk 0:01:42.1]} 6. e3 {[%clk 0:02:42.9]} 6... g6 {[%clk 0:01:41]} 7.
Be5 {[%clk 0:02:33]} 7... f6 {[%clk 0:01:33.6]} 8. Bg3 {[%clk 0:02:28.7]} 8...
Bg7 {[%clk 0:01:29]} 9. Bc4 {[%clk 0:02:12.9]} 9... d5 {[%clk 0:01:20.2]} 10.
Bb5+ {[%clk 0:01:59.3]} 10... Bc6 {[%clk 0:01:12.8]} 11. Bd3 {[%clk 0:01:49.6]}
11... O-O {[%clk 0:01:07.4]} 12. Nbd2 {[%clk 0:01:48.4]} 12... Nxg3 {[%clk
0:01:02.3]} 13. hxg3 {[%clk 0:01:48.1]} 13... e5 {[%clk 0:01:02.7]} 14. dxe5
{[%clk 0:01:35.4]} 14... fxe5 {[%clk 0:01:01.3]} 15. e4 {[%clk 0:01:35.8]} 15...
d4 {[%clk 0:00:47.4]} 16. Bc4+ {[%clk 0:01:27.4]} 16... Kh8 {[%clk 0:00:44.9]}
17. Nh4 {[%clk 0:01:11.3]} 17... Qf6 {[%clk 0:00:43.7]} 18. Qf3 {[%clk
0:01:10.9]} 18... Nd7 {[%clk 0:00:36.4]} 19. Qxf6 {[%clk 0:01:07.8]} 19... Rxf6
{[%clk 0:00:34.2]} 20. g4 {[%clk 0:01:03.2]} 20... Nf8 {[%clk 0:00:21.2]} 21.
Ndf3 {[%clk 0:00:31.1]} 21... b5 {[%clk 0:00:18]} 22. Bd5 {[%clk 0:00:23]} 22...
Bxd5 {[%clk 0:00:17.5]} 23. exd5 {[%clk 0:00:23.9]} 23... e4 {[%clk 0:00:15.9]}
24. Ng5 {[%clk 0:00:21.9]} 24... Re8 {[%clk 0:00:16.1]} 25. O-O-O {[%clk
0:00:20.2]} 25... Kg8 {[%clk 0:00:14.9]} 26. Rhe1 {[%clk 0:00:15]} 26... Rf4
{[%clk 0:00:12.4]} 27. g3 {[%clk 0:00:14.1]} 27... Rxg4 {[%clk 0:00:11.9]} 28.
f3 {[%clk 0:00:10.2]} 28... Rxg5 {[%clk 0:00:11]} 29. fxe4 {[%clk 0:00:09.5]}
29... Rxg3 {[%clk 0:00:10.1]} 30. cxd4 {[%clk 0:00:07.8]} 30... Bxd4 {[%clk
0:00:09.3]} 31. Rh1 {[%clk 0:00:06.1]} 31... Nd7 {[%clk 0:00:08.7]} 32. Kb1
{[%clk 0:00:06.1]} 32... Ne5 {[%clk 0:00:08.5]} 33. d6 {[%clk 0:00:03.8]} 33...
Rd8 {[%clk 0:00:08.2]} 34. Rhf1 {[%clk 0:00:03.4]} 34... Rxd6 {[%clk 0:00:07.8]}
35. Rd2 {[%clk 0:00:02]} 35... Nc4 {[%clk 0:00:07.6]} 36. Re2 {[%clk 0:00:01]}
36... Nxb2 {[%clk 0:00:06.3]} 0-1

[Event "Early-Titled-Tuesday-Blitz-July-09-2024"]
[Site "Chess.com"]
[Date "2024.07.09"]
[Round "6"]
[White "woodpusher52"]
[Black "Sic_Transit_GM"]
[Result "0-1"]
[WhiteElo "2744"]
[BlackElo "2603"]
[TimeControl "180+1"]
[EndTime "9:09:06 PDT"]
[Termination "Sic_Transit_GM won by checkmate"]

1. d4 {[%clk 0:03:00.9]} 1... d5 {[%clk 0:02:59.7]} 2. Nf3 {[%clk 0:03:01.2]}
2... Nf6 {[%clk 0:02:58.4]} 3. c4 {[%clk 0:03:01]} 3... dxc4 {[%clk 0:02:58.5]}
4. e3 {[%clk 0:03:00.6]} 4... Bg4 {[%clk 0:02:58.3]} 5. Bxc4 {[%clk 0:03:00.3]}
5... e6 {[%clk 0:02:58.8]} 6. h3 {[%clk 0:02:55.9]} 6... Bh5 {[%clk 0:02:58.6]}
7. Qb3 {[%clk 0:02:49.8]} 7... Bxf3 {[%clk 0:02:52.3]} 8. gxf3 {[%clk
0:02:50.7]} 8... c5 {[%clk 0:02:51.5]} 9. Qxb7 {[%clk 0:02:25.6]} 9... Nbd7
{[%clk 0:02:51.5]} 10. O-O {[%clk 0:01:51.2]} 10... cxd4 {[%clk 0:02:51]} 11.
Rd1 {[%clk 0:01:48.5]} 11... Rb8 {[%clk 0:02:26.3]} 12. Qxa7 {[%clk 0:01:47.8]}
12... Bc5 {[%clk 0:02:25.7]} 13. Qa4 {[%clk 0:01:47.3]} 13... O-O {[%clk
0:02:21.6]} 14. exd4 {[%clk 0:01:45.5]} 14... Bd6 {[%clk 0:02:18.2]} 15. Bg5
{[%clk 0:01:39.8]} 15... Rb4 {[%clk 0:02:07.7]} 16. Qc2 {[%clk 0:01:39.6]} 16...
Qb8 {[%clk 0:01:57.9]} 17. b3 {[%clk 0:01:37.1]} 17... Bh2+ {[%clk 0:01:43.9]}
18. Kg2 {[%clk 0:01:33.8]} 18... h6 {[%clk 0:01:17.5]} 19. Bh4 {[%clk
0:01:28.4]} 19... Nh5 {[%clk 0:01:17.4]} 20. Be7 {[%clk 0:01:17.2]} 20... Bd6
{[%clk 0:00:44.3]} 21. Bxf8 {[%clk 0:01:10.4]} 21... Qxf8 {[%clk 0:00:45.2]} 22.
Nc3 {[%clk 0:01:02.4]} 22... Qe7 {[%clk 0:00:37.7]} 23. Ne4 {[%clk 0:00:47.7]}
23... Bb8 {[%clk 0:00:27]} 24. Ng3 {[%clk 0:00:43.4]} 24... Nf4+ {[%clk
0:00:26.6]} 25. Kf1 {[%clk 0:00:39.6]} 25... Qh4 {[%clk 0:00:27.1]} 26. Ke1
{[%clk 0:00:24.6]} 26... Qxh3 {[%clk 0:00:20.3]} 27. Qe4 {[%clk 0:00:21.6]}
27... Nf6 {[%clk 0:00:17.4]} 28. Qc6 {[%clk 0:00:20.6]} 28... Qg2 {[%clk
0:00:14.8]} 29. a3 {[%clk 0:00:16]} 29... Qg1+ {[%clk 0:00:11.2]} 30. Nf1 {[%clk
0:00:15.3]} 30... Ng2+ {[%clk 0:00:05.9]} 31. Ke2 {[%clk 0:00:15.5]} 31... Nh5
{[%clk 0:00:05.8]} 32. Qe8+ {[%clk 0:00:11.9]} 32... Kh7 {[%clk 0:00:05.4]} 33.
Bd3+ {[%clk 0:00:12.2]} 33... f5 {[%clk 0:00:05.3]} 34. axb4 {[%clk 0:00:04.4]}
34... Nhf4+ {[%clk 0:00:05.8]} 35. Kd2 {[%clk 0:00:04.9]} 35... Qxf2+ {[%clk
0:00:06.4]} 36. Kc3 {[%clk 0:00:02.6]} 36... Nd5+ {[%clk 0:00:05.2]} 37. Kc4
{[%clk 0:00:03.2]} 37... Qb2 {[%clk 0:00:04.2]} 38. Qxe6 {[%clk 0:00:03]} 38...
Qc3+ {[%clk 0:00:04.1]} 39. Kxd5 {[%clk 0:00:03.1]} 39... Nf4# {[%clk
0:00:04.6]} 0-1

[Event "Early-Titled-Tuesday-Blitz-July-09-2024"]
[Site "Chess.com"]
[Date "2024.07.09"]
[Round "6"]
[White "Oleksandr_Bortnyk"]
[Black "evgchess5"]
[Result "1-0"]
[WhiteElo "3073"]
[BlackElo "2861"]
[TimeControl "180+1"]
[EndTime "9:09:08 PDT"]
[Termination "Oleksandr_Bortnyk won on time"]

1. e4 {[%clk 0:02:58.9]} 1... e5 {[%clk 0:02:59.4]} 2. Nf3 {[%clk 0:02:53.2]}
2... Nc6 {[%clk 0:02:58.3]} 3. Bb5 {[%clk 0:02:53.5]} 3... Nf6 {[%clk
0:02:56.5]} 4. Qe2 {[%clk 0:02:49.6]} 4... Bc5 {[%clk 0:02:42.4]} 5. c3 {[%clk
0:02:48.8]} 5... O-O {[%clk 0:02:33.3]} 6. d3 {[%clk 0:02:47.5]} 6... d6 {[%clk
0:02:30.5]} 7. h3 {[%clk 0:02:46.5]} 7... Bb6 {[%clk 0:02:20.9]} 8. Ba4 {[%clk
0:02:44.9]} 8... Ne7 {[%clk 0:02:20.3]} 9. Nbd2 {[%clk 0:02:41.7]} 9... c6
{[%clk 0:02:19.3]} 10. Nf1 {[%clk 0:02:41.6]} 10... Ng6 {[%clk 0:02:18.5]} 11.
g4 {[%clk 0:02:41.6]} 11... d5 {[%clk 0:02:05.8]} 12. Bc2 {[%clk 0:02:37.2]}
12... Re8 {[%clk 0:02:02.8]} 13. Ng3 {[%clk 0:02:32.9]} 13... Nf4 {[%clk
0:01:57]} 14. Qf1 {[%clk 0:02:33.2]} 14... Qd6 {[%clk 0:01:37.7]} 15. g5 {[%clk
0:02:20]} 15... N6h5 {[%clk 0:01:32.4]} 16. Bd2 {[%clk 0:02:20.5]} 16... Be6
{[%clk 0:01:19.1]} 17. O-O-O {[%clk 0:02:13.8]} 17... d4 {[%clk 0:01:08.1]} 18.
cxd4 {[%clk 0:02:08.1]} 18... Bxd4 {[%clk 0:01:07.7]} 19. Nxd4 {[%clk
0:02:07.4]} 19... Qxd4 {[%clk 0:01:07.5]} 20. Bc3 {[%clk 0:02:01.3]} 20... Qd6
{[%clk 0:01:06.1]} 21. d4 {[%clk 0:01:59.8]} 21... exd4 {[%clk 0:01:06.1]} 22.
Rxd4 {[%clk 0:01:59.2]} 22... Qc5 {[%clk 0:01:03.9]} 23. Nxh5 {[%clk 0:01:59]}
23... Nxh5 {[%clk 0:01:03.2]} 24. h4 {[%clk 0:01:41.2]} 24... a5 {[%clk
0:00:55.3]} 25. Qd1 {[%clk 0:01:38.5]} 25... g6 {[%clk 0:00:53.7]} 26. a3 {[%clk
0:01:26.1]} 26... b5 {[%clk 0:00:52.8]} 27. Qd2 {[%clk 0:00:46.8]} 27... b4
{[%clk 0:00:52.2]} 28. axb4 {[%clk 0:00:47.7]} 28... axb4 {[%clk 0:00:52.3]} 29.
Rxb4 {[%clk 0:00:48.6]} 29... Ra1+ {[%clk 0:00:50.8]} 30. Bb1 {[%clk 0:00:49.2]}
30... Rea8 {[%clk 0:00:12.6]} 31. Rd1 {[%clk 0:00:45.6]} 31... h6 {[%clk
0:00:10.8]} 32. Qd8+ {[%clk 0:00:40.6]} 32... Qf8 {[%clk 0:00:10.8]} 33. Qd4
{[%clk 0:00:27.5]} 33... Kh7 {[%clk 0:00:09.3]} 34. Rb7 {[%clk 0:00:23.6]} 34...
Nf4 {[%clk 0:00:05.2]} 35. Qe3 {[%clk 0:00:18.5]} 35... Nh5 {[%clk 0:00:02.3]}
36. Qf3 {[%clk 0:00:12.5]} 36... Qe8 {[%clk 0:00:01.8]} 37. b3 {[%clk
0:00:10.2]} 37... c5 {[%clk 0:00:01.5]} 38. Bxa1 {[%clk 0:00:10.2]} 38... Rxa1
{[%clk 0:00:01.3]} 39. Qc3 {[%clk 0:00:09.2]} 39... Ra8 {[%clk 0:00:01.6]} 40.
Qe5 {[%clk 0:00:05.7]} 1-0

[Event "Early-Titled-Tuesday-Blitz-July-09-2024"]
[Site "Chess.com"]
[Date "2024.07.09"]
[Round "6"]
[White "DanylaBagrov"]
[Black "Flawless_Fighter"]
[Result "0-1"]
[WhiteElo "2600"]
[BlackElo "2788"]
[TimeControl "180+1"]
[EndTime "9:09:09 PDT"]
[Termination "Flawless_Fighter won by resignation"]

1. e4 {[%clk 0:03:00.9]} 1... c6 {[%clk 0:02:59.7]} 2. Nf3 {[%clk 0:02:54.3]}
2... d5 {[%clk 0:03:00.6]} 3. d3 {[%clk 0:02:54.8]} 3... g6 {[%clk 0:03:00]} 4.
Be2 {[%clk 0:02:52.4]} 4... Bg7 {[%clk 0:03:00.2]} 5. O-O {[%clk 0:02:52.4]}
5... e5 {[%clk 0:02:57.7]} 6. Re1 {[%clk 0:02:49.6]} 6... Ne7 {[%clk 0:02:57.7]}
7. Bf1 {[%clk 0:02:47.2]} 7... Nd7 {[%clk 0:02:54.8]} 8. Nc3 {[%clk 0:02:36]}
8... O-O {[%clk 0:02:54.4]} 9. d4 {[%clk 0:02:36.1]} 9... f5 {[%clk 0:02:46.5]}
10. Ng5 {[%clk 0:02:09.1]} 10... Nb6 {[%clk 0:02:12.3]} 11. exd5 {[%clk
0:01:56.7]} 11... e4 {[%clk 0:02:10.9]} 12. dxc6 {[%clk 0:01:52]} 12... bxc6
{[%clk 0:02:10.5]} 13. f3 {[%clk 0:01:35.5]} 13... h6 {[%clk 0:02:03.1]} 14. Nh3
{[%clk 0:01:32.5]} 14... Qxd4+ {[%clk 0:01:53]} 15. Qxd4 {[%clk 0:01:23]} 15...
Bxd4+ {[%clk 0:01:52.6]} 16. Kh1 {[%clk 0:01:23.9]} 16... g5 {[%clk 0:01:33.1]}
17. fxe4 {[%clk 0:01:18.7]} 17... f4 {[%clk 0:01:32.6]} 18. Ng1 {[%clk
0:00:59.1]} 18... Be6 {[%clk 0:01:24.7]} 19. e5 {[%clk 0:00:47.7]} 19... Nf5
{[%clk 0:01:10.3]} 20. Nf3 {[%clk 0:00:42.7]} 20... Be3 {[%clk 0:01:00.7]} 21.
Bd3 {[%clk 0:00:29.6]} 21... Rad8 {[%clk 0:00:56.7]} 22. Bxf5 {[%clk 0:00:26.4]}
22... Bxf5 {[%clk 0:00:57.6]} 23. Bxe3 {[%clk 0:00:26.8]} 23... fxe3 {[%clk
0:00:57.7]} 24. Rxe3 {[%clk 0:00:26.4]} 24... Nc4 {[%clk 0:00:57.9]} 25. Re2
{[%clk 0:00:24.8]} 25... Nxb2 {[%clk 0:00:54.1]} 26. e6 {[%clk 0:00:20.9]} 26...
Rfe8 {[%clk 0:00:54.1]} 27. Rae1 {[%clk 0:00:17.8]} 27... Re7 {[%clk 0:00:51.8]}
28. Re5 {[%clk 0:00:13.8]} 28... Bg4 {[%clk 0:00:36.7]} 29. Ne4 {[%clk
0:00:10.2]} 29... Rxe6 {[%clk 0:00:25.1]} 30. Rxe6 {[%clk 0:00:09.4]} 30... Bxe6
{[%clk 0:00:26]} 31. Nexg5 {[%clk 0:00:08.4]} 31... Bxa2 {[%clk 0:00:25.9]} 32.
Ne4 {[%clk 0:00:05.9]} 32... Kg7 {[%clk 0:00:22.5]} 33. Nh4 {[%clk 0:00:03.7]}
33... Bd5 {[%clk 0:00:20.8]} 34. Nc5 {[%clk 0:00:03]} 34... Kf6 {[%clk
0:00:15.3]} 35. h3 {[%clk 0:00:03.1]} 35... Nc4 {[%clk 0:00:14.4]} 36. Rf1+
{[%clk 0:00:03.5]} 36... Ke5 {[%clk 0:00:12.9]} 37. Ng6+ {[%clk 0:00:03.5]}
37... Kd4 {[%clk 0:00:12.5]} 38. Nf4 {[%clk 0:00:01.8]} 38... Kxc5 {[%clk
0:00:12.3]} 39. Rd1 {[%clk 0:00:02]} 39... Bxg2+ {[%clk 0:00:10.4]} 40. Kxg2
{[%clk 0:00:02.1]} 40... Rxd1 {[%clk 0:00:11.3]} 0-1

[Event "Early-Titled-Tuesday-Blitz-July-09-2024"]
[Site "Chess.com"]
[Date "2024.07.09"]
[Round "6"]
[White "Kopytkin"]
[Black "JueIes"]
[Result "0-1"]
[WhiteElo "2415"]
[BlackElo "2547"]
[TimeControl "180+1"]
[EndTime "9:09:10 PDT"]
[Termination "JueIes won on time"]

1. d4 {[%clk 0:03:00.9]} 1... Nf6 {[%clk 0:03:00.1]} 2. Nf3 {[%clk 0:02:59.8]}
2... d5 {[%clk 0:03:00.2]} 3. e3 {[%clk 0:02:58.2]} 3... c5 {[%clk 0:03:00.1]}
4. Ne5 {[%clk 0:02:55.6]} 4... Nc6 {[%clk 0:02:57.7]} 5. Bd3 {[%clk 0:02:52.8]}
5... c4 {[%clk 0:02:50.6]} 6. Be2 {[%clk 0:02:52.1]} 6... Bf5 {[%clk 0:02:51.1]}
7. f4 {[%clk 0:02:49.3]} 7... e6 {[%clk 0:02:48.4]} 8. O-O {[%clk 0:02:47.4]}
8... Be7 {[%clk 0:02:42.4]} 9. Nc3 {[%clk 0:02:46.8]} 9... Ne4 {[%clk
0:02:39.7]} 10. Bd2 {[%clk 0:02:34.5]} 10... Nxc3 {[%clk 0:02:37]} 11. Bxc3
{[%clk 0:02:34.3]} 11... f6 {[%clk 0:02:34.9]} 12. Nxc6 {[%clk 0:02:31.3]} 12...
bxc6 {[%clk 0:02:35.8]} 13. Bf3 {[%clk 0:02:31.5]} 13... O-O {[%clk 0:02:23.6]}
14. Qe2 {[%clk 0:02:27.1]} 14... Qd7 {[%clk 0:02:13.3]} 15. Rae1 {[%clk
0:02:21.6]} 15... Bg6 {[%clk 0:02:04.3]} 16. e4 {[%clk 0:02:19.7]} 16... Rfe8
{[%clk 0:01:54.6]} 17. g4 {[%clk 0:01:46.4]} 17... Bf7 {[%clk 0:01:45.8]} 18.
Rf2 {[%clk 0:01:37.5]} 18... Rad8 {[%clk 0:01:44.3]} 19. Rg2 {[%clk 0:01:30.9]}
19... c5 {[%clk 0:01:43.1]} 20. exd5 {[%clk 0:01:28.5]} 20... exd5 {[%clk
0:01:37.6]} 21. Qd2 {[%clk 0:01:09.3]} 21... Bd6 {[%clk 0:01:36.4]} 22. Rge2
{[%clk 0:00:59]} 22... Rxe2 {[%clk 0:01:29.3]} 23. Rxe2 {[%clk 0:00:59.1]} 23...
Re8 {[%clk 0:01:22.4]} 24. dxc5 {[%clk 0:00:53.2]} 24... Bxc5+ {[%clk 0:01:22]}
25. Bd4 {[%clk 0:00:53.4]} 25... Rxe2 {[%clk 0:01:17.1]} 26. Bxe2 {[%clk
0:00:52.8]} 26... Qe7 {[%clk 0:01:16.1]} 27. Kf2 {[%clk 0:00:43.8]} 27... h6
{[%clk 0:01:10.8]} 28. Qe3 {[%clk 0:00:39.8]} 28... Bxd4 {[%clk 0:01:02.6]} 29.
Qxd4 {[%clk 0:00:40.7]} 29... g5 {[%clk 0:00:58.6]} 30. fxg5 {[%clk 0:00:33.6]}
30... hxg5 {[%clk 0:00:57.3]} 31. Bf3 {[%clk 0:00:34.2]} 31... Qe5 {[%clk
0:00:55.1]} 32. Qxe5 {[%clk 0:00:18.6]} 32... fxe5 {[%clk 0:00:55.7]} 33. Kg3
{[%clk 0:00:15.5]} 33... Kg7 {[%clk 0:00:43.8]} 34. h4 {[%clk 0:00:15.1]} 34...
gxh4+ {[%clk 0:00:43.7]} 35. Kxh4 {[%clk 0:00:15.2]} 35... d4 {[%clk 0:00:43.1]}
36. Kg5 {[%clk 0:00:06.5]} 36... Bg6 {[%clk 0:00:42.1]} 37. c3 {[%clk
0:00:06.6]} 37... e4 {[%clk 0:00:39.3]} 38. Bxe4 {[%clk 0:00:05.1]} 38... Bxe4
{[%clk 0:00:38]} 39. cxd4 {[%clk 0:00:04.8]} 39... a5 {[%clk 0:00:33.5]} 40. a3
{[%clk 0:00:02]} 40... a4 {[%clk 0:00:31.3]} 41. Kf4 {[%clk 0:00:02.2]} 41...
Bb1 {[%clk 0:00:29.8]} 42. Ke5 {[%clk 0:00:02.4]} 42... Kg6 {[%clk 0:00:27.1]}
43. d5 {[%clk 0:00:01.2]} 43... Kf7 {[%clk 0:00:18.5]} 44. g5 {[%clk 0:00:01]}
44... Ke7 {[%clk 0:00:17.6]} 45. d6+ {[%clk 0:00:01.9]} 45... Kd7 {[%clk
0:00:18]} 46. Kd5 {[%clk 0:00:02.1]} 46... Ba2 {[%clk 0:00:16.6]} 0-1